fUSD/lending_fUSD_20260512
["ID","MTS","AMOUNT","RATE_DAILY","PERIOD"]
[422113371,1778577132000,-362.83555288,0.00041361,120]
[422113377,1778577132000,-404.97572685,0.00041361,30]
[422113386,1778577132000,-6472.46865776,0.00041361,120]
[422113379,1778577132000,-667.86599724,0.00041361,120]
[422113372,1778577132000,-315.45771299,0.00041361,30]
[422113373,1778577132000,-151.27436765,0.00041361,30]
[422113375,1778577132000,-298.82007355,0.00041361,120]
[422113374,1778577132000,-625.82180876,0.00041361,30]
[422113376,1778577132000,-907.72011596,0.00041361,120]
[422113380,1778577132000,-230.54048662,0.00041361,120]
[422113383,1778577132000,-456.27358763,0.00041361,30]
[422113381,1778577132000,-1678.72577337,0.00041361,30]
[422113390,1778577132000,-500.0,0.00041361,120]
[422113391,1778577132000,-500.0,0.00041361,120]
[422113382,1778577132000,-492.60351739,0.00041361,120]
[422113384,1778577132000,-10404.50044037,0.00041361,90]
[422113392,1778577132000,-500.0,0.00041361,120]
[422113387,1778577132000,-5031.90070284,0.00041361,120]
[422113369,1778577132000,-205.8451254,0.00041361,30]
[422113426,1778577132000,-1649.71,0.00041361,120]
[422113443,1778577132000,-500.0,0.00041361,120]
[422113423,1778577132000,-1649.71,0.00041361,120]
[422113464,1778577132000,-500.0,0.00041361,120]
[422113472,1778577132000,-500.0,0.00041361,120]
[422113465,1778577132000,-500.0,0.00041361,120]
[422113468,1778577132000,-500.0,0.00041361,120]
[422113469,1778577132000,-500.0,0.00041361,120]
[422113467,1778577132000,-500.0,0.00041361,120]
[422113470,1778577132000,-500.0,0.00041361,120]
[422113461,1778577132000,-500.0,0.00041361,120]
[422113460,1778577132000,-500.0,0.00041361,120]
[422113471,1778577132000,-500.0,0.00041361,120]
[422113466,1778577132000,-500.0,0.00041361,120]
[422113463,1778577132000,-500.0,0.00041361,120]
[422113474,1778577132000,-500.0,0.00041361,120]
[422113486,1778577132000,-500.0,0.00041361,120]
[422113484,1778577132000,-500.0,0.00041361,120]
[422113485,1778577132000,-500.0,0.00041361,120]
[422113476,1778577132000,-500.0,0.00041361,120]
[422113473,1778577132000,-500.0,0.00041361,120]
[422113475,1778577132000,-500.0,0.00041361,120]
[422113477,1778577132000,-500.0,0.00041361,120]
[422113479,1778577132000,-500.0,0.00041361,120]
[422113481,1778577132000,-500.0,0.00041361,120]
[422113480,1778577132000,-500.0,0.00041361,120]
[422113483,1778577132000,-500.0,0.00041361,120]
[422113478,1778577132000,-500.0,0.00041361,120]
[422113487,1778577132000,-500.0,0.00041361,120]
[422113490,1778577132000,-500.0,0.00041361,120]
[422113488,1778577132000,-500.0,0.00041361,120]
[422113489,1778577132000,-500.0,0.00041361,120]
[422113462,1778577132000,-500.0,0.00041361,120]
[422113459,1778577132000,-500.0,0.00041361,120]
[422113482,1778577132000,-500.0,0.00041361,120]
[422113454,1778577132000,-500.0,0.00041361,120]
[422113456,1778577132000,-500.0,0.00041361,120]
[422113427,1778577132000,-1649.71,0.00041361,120]
[422113428,1778577132000,-1649.71,0.00041361,120]
[422113424,1778577132000,-1649.71,0.00041361,120]
[422113432,1778577132000,-1649.71,0.00041361,120]
[422113430,1778577132000,-1649.71,0.00041361,120]
[422113431,1778577132000,-1649.71,0.00041361,120]
[422113433,1778577132000,-1649.71,0.00041361,120]
[422113441,1778577132000,-500.0,0.00041361,120]
[422113435,1778577132000,-1649.71,0.00041361,120]
[422113437,1778577132000,-1649.71,0.00041361,120]
[422113491,1778577132000,-500.0,0.00041361,120]
[422113438,1778577132000,-1649.75742214,0.00041361,120]
[422113436,1778577132000,-1649.71,0.00041361,120]
[422113434,1778577132000,-1649.71,0.00041361,120]
[422113420,1778577132000,-1649.71,0.00041361,120]
[422113445,1778577132000,-500.0,0.00041361,120]
[422113440,1778577132000,-500.0,0.00041361,120]
[422113450,1778577132000,-500.0,0.00041361,120]
[422113457,1778577132000,-500.0,0.00041361,120]
[422113458,1778577132000,-500.0,0.00041361,120]
[422113452,1778577132000,-500.0,0.00041361,120]
[422113455,1778577132000,-500.0,0.00041361,120]
[422113449,1778577132000,-500.0,0.00041361,120]
[422113451,1778577132000,-500.0,0.00041361,120]
[422113453,1778577132000,-500.0,0.00041361,120]
[422113446,1778577132000,-500.0,0.00041361,120]
[422113448,1778577132000,-500.0,0.00041361,120]
[422113447,1778577132000,-500.0,0.00041361,120]
[422113444,1778577132000,-500.0,0.00041361,120]
[422113442,1778577132000,-500.0,0.00041361,120]
[422113439,1778577132000,-500.0,0.00041361,120]
[422113526,1778577133000,-500.0,0.00041361,120]
[422113524,1778577133000,-500.0,0.00041361,120]
[422113529,1778577133000,-500.0,0.00041361,120]
[422113525,1778577133000,-500.0,0.00041361,120]
[422113522,1778577133000,-500.0,0.00041361,120]
[422113521,1778577133000,-500.0,0.00041361,120]
[422113531,1778577133000,-500.0,0.00041361,120]
[422113520,1778577133000,-500.0,0.00041361,120]
[422113523,1778577133000,-500.0,0.00041361,120]
[422113527,1778577133000,-500.0,0.00041361,120]
[422113534,1778577133000,-500.0,0.00041361,120]
[422113528,1778577133000,-500.0,0.00041361,120]
[422113533,1778577133000,-500.0,0.00041361,120]
[422113532,1778577133000,-500.0,0.00041361,120]
[422113543,1778577133000,-500.0,0.00041361,120]
[422113535,1778577133000,-500.0,0.00041361,120]
[422113515,1778577133000,-500.0,0.00041361,120]
[422113538,1778577133000,-500.0,0.00041361,120]
[422113539,1778577133000,-1581.5169207,0.00041361,120]
[422113542,1778577133000,-500.0,0.00041361,120]
[422113540,1778577133000,-500.0,0.00041361,120]
[422113541,1778577133000,-500.0,0.00041361,120]
[422113530,1778577133000,-500.0,0.00041361,120]
[422113516,1778577133000,-500.0,0.00041361,120]
[422113511,1778577133000,-500.0,0.00041361,120]
[422113517,1778577133000,-500.0,0.00041361,120]
[422113536,1778577133000,-500.0,0.00041361,120]
[422113500,1778577133000,-500.0,0.00041361,120]
[422113498,1778577133000,-500.0,0.00041361,120]
[422113499,1778577133000,-500.0,0.00041361,120]
[422113493,1778577133000,-500.0,0.00041361,120]
[422113492,1778577133000,-500.0,0.00041361,120]
[422113495,1778577133000,-500.0,0.00041361,120]
[422113497,1778577133000,-500.0,0.00041361,120]
[422113494,1778577133000,-500.0,0.00041361,120]
[422113496,1778577133000,-500.0,0.00041361,120]
[422113502,1778577133000,-500.0,0.00041361,120]
[422113503,1778577133000,-500.0,0.00041361,120]
[422113506,1778577133000,-500.0,0.00041361,120]
[422113505,1778577133000,-500.0,0.00041361,120]
[422113513,1778577133000,-500.0,0.00041361,120]
[422113512,1778577133000,-500.0,0.00041361,120]
[422113507,1778577133000,-500.0,0.00041361,120]
[422113504,1778577133000,-500.0,0.00041361,120]
[422113510,1778577133000,-500.0,0.00041361,120]
[422113508,1778577133000,-500.0,0.00041361,120]
[422113509,1778577133000,-500.0,0.00041361,120]
[422113514,1778577133000,-500.0,0.00041361,120]
[422113518,1778577133000,-500.0,0.00041361,120]
[422113519,1778577133000,-500.0,0.00041361,120]
[422113501,1778577133000,-500.0,0.00041361,120]
[422113537,1778577133000,-500.0,0.00041361,120]
[422113548,1778577133000,-409.94107543,0.00041361,2]
[422113573,1778577133000,-500.0,0.00041361,2]
[422113577,1778577133000,-500.0,0.00041361,2]
[422113574,1778577133000,-500.0,0.00041361,2]
[422113578,1778577133000,-500.0,0.00041361,2]
[422113579,1778577133000,-500.0,0.00041361,2]
[422113576,1778577133000,-500.0,0.00041361,2]
[422113581,1778577133000,-500.0,0.00041361,2]
[422113591,1778577133000,-500.0,0.00041361,4]
[422113592,1778577133000,-500.0,0.00041361,4]
[422113582,1778577133000,-500.0,0.00041361,2]
[422113583,1778577133000,-500.0,0.00041361,2]
[422113580,1778577133000,-500.0,0.00041361,2]
[422113586,1778577133000,-500.0,0.00041361,2]
[422113587,1778577133000,-466.04533081,0.00041361,2]
[422113585,1778577133000,-500.0,0.00041361,2]
[422113590,1778577133000,-500.0,0.00041361,4]
[422113588,1778577133000,-589.06479261,0.00041361,120]
[422113589,1778577133000,-500.0,0.00041361,4]
[422113593,1778577133000,-500.0,0.00041361,4]
[422113595,1778577133000,-500.0,0.00041361,4]
[422113594,1778577133000,-500.0,0.00041361,4]
[422113596,1778577133000,-500.0,0.00041361,4]
[422113544,1778577133000,-522.64344688,0.00041361,120]
[422113572,1778577133000,-469.58927958,0.00041361,60]
[422113575,1778577133000,-500.0,0.00041361,2]
[422113584,1778577133000,-500.0,0.00041361,2]
[422113570,1778577133000,-3059.39,0.00041361,120]
[422113546,1778577133000,-703.58,0.00041361,120]
[422113571,1778577133000,-500.0,0.00041361,60]
[422113547,1778577133000,-100000.0,0.00041361,30]
[422113549,1778577133000,-426.44613071,0.00041361,120]
[422113545,1778577133000,-182.11,0.00041361,120]
[422113552,1778577133000,-500.0,0.00041361,14]
[422113550,1778577133000,-500.0,0.00041361,14]
[422113553,1778577133000,-500.0,0.00041361,14]
[422113554,1778577133000,-500.0,0.00041361,14]
[422113556,1778577133000,-500.0,0.00041361,14]
[422113566,1778577133000,-3059.39,0.00041361,120]
[422113557,1778577133000,-500.0,0.00041361,14]
[422113551,1778577133000,-500.0,0.00041361,14]
[422113555,1778577133000,-500.0,0.00041361,14]
[422113569,1778577133000,-3059.39,0.00041361,120]
[422113558,1778577133000,-500.0,0.00041361,14]
[422113567,1778577133000,-3059.39,0.00041361,120]
[422113559,1778577133000,-386.5405583,0.00041361,14]
[422113565,1778577133000,-3059.39,0.00041361,120]
[422113561,1778577133000,-3059.39,0.00041361,120]
[422113562,1778577133000,-3059.39,0.00041361,120]
[422113564,1778577133000,-3059.39,0.00041361,120]
[422113560,1778577133000,-3059.39,0.00041361,120]
[422113563,1778577133000,-3059.39,0.00041361,120]
[422113568,1778577133000,-3059.39,0.00041361,120]
[422113635,1778577134000,-1908.9,0.00041361,120]
[422113640,1778577134000,-1908.9,0.00041361,120]
[422113639,1778577134000,-1908.9,0.00041361,120]
[422113641,1778577134000,-1908.9,0.00041361,120]
[422113638,1778577134000,-1908.9,0.00041361,120]
[422113637,1778577134000,-1908.9,0.00041361,120]
[422113633,1778577134000,-1908.9,0.00041361,120]
[422113644,1778577134000,-1908.9,0.00041361,120]
[422113645,1778577134000,-1908.9,0.00041361,120]
[422113634,1778577134000,-1908.9,0.00041361,120]
[422113630,1778577134000,-150.0,0.00041361,120]
[422113642,1778577134000,-1908.9,0.00041361,120]
[422113626,1778577134000,-71989.9,0.00041361,30]
[422113636,1778577134000,-1908.9,0.00041361,120]
[422113643,1778577134000,-1908.9,0.00041361,120]
[422113656,1778577134000,-500.0,0.00041361,120]
[422113659,1778577134000,-500.0,0.00041361,120]
[422113658,1778577134000,-500.0,0.00041361,120]
[422113657,1778577134000,-212.76,0.00041361,120]
[422113648,1778577134000,-1908.9,0.00041361,120]
[422113647,1778577134000,-1908.9,0.00041361,120]
[422113650,1778577134000,-1908.9,0.00041361,120]
[422113649,1778577134000,-1908.9,0.00041361,120]
[422113651,1778577134000,-1908.9,0.00041361,120]
[422113653,1778577134000,-1908.9,0.00041361,120]
[422113654,1778577134000,-1909.1333,0.00041361,120]
[422113655,1778577134000,-500.0,0.00041361,120]
[422113652,1778577134000,-1908.9,0.00041361,120]
[422113671,1778577134000,-1559.81187068,0.00041361,2]
[422113627,1778577134000,-500.0,0.00041361,60]
[422113646,1778577134000,-1908.9,0.00041361,120]
[422113625,1778577134000,-107984.9,0.00041361,120]
[422113597,1778577134000,-500.0,0.00041361,4]
[422113632,1778577134000,-1908.9,0.00041361,120]
[422113661,1778577134000,-401.16163483,0.00041361,2]
[422113603,1778577134000,-500.0,0.00041361,4]
[422113600,1778577134000,-500.0,0.00041361,4]
[422113606,1778577134000,-500.0,0.00041361,4]
[422113599,1778577134000,-500.0,0.00041361,4]
[422113598,1778577134000,-500.0,0.00041361,4]
[422113605,1778577134000,-500.0,0.00041361,4]
[422113601,1778577134000,-500.0,0.00041361,4]
[422113604,1778577134000,-500.0,0.00041361,4]
[422113602,1778577134000,-500.0,0.00041361,4]
[422113608,1778577134000,-500.0,0.00041361,4]
[422113618,1778577134000,-500.0,0.00041361,16]
[422113607,1778577134000,-500.0,0.00041361,4]
[422113610,1778577134000,-500.0,0.00041361,4]
[422113629,1778577134000,-150.0,0.00041361,120]
[422113609,1778577134000,-500.0,0.00041361,4]
[422113615,1778577134000,-681.1,0.00041361,120]
[422113612,1778577134000,-500.0,0.00041361,12]
[422113611,1778577134000,-386.2182271,0.00041361,4]
[422113614,1778577134000,-506.81630186,0.00041361,12]
[422113613,1778577134000,-500.0,0.00041361,12]
[422113616,1778577134000,-454.1,0.00041361,30]
[422113619,1778577134000,-500.0,0.00041361,16]
[422113623,1778577134000,-500.0,0.00041361,16]
[422113628,1778577134000,-444.39132273,0.00041361,60]
[422113620,1778577134000,-500.0,0.00041361,16]
[422113631,1778577134000,-1908.9,0.00041361,120]
[422113622,1778577134000,-500.0,0.00041361,16]
[422113624,1778577134000,-524.35196587,0.00041361,16]
[422113621,1778577134000,-500.0,0.00041361,16]
[422113617,1778577134000,-500.0,0.00041361,16]
[422113660,1778577134000,-634.99630465,0.00041361,120]
[422113673,1778577134000,-5327.6616729,0.00041361,2]
[422113663,1778577134000,-172287.75379385,0.00041361,2]
[422113694,1778577134000,-677.78137664,0.00041361,2]
[422113701,1778577134000,-350.44715896,0.00041361,2]
[422113711,1778577134000,-2259.32245643,0.00041361,2]
[422113700,1778577134000,-2500.0,0.00041361,2]
[422113712,1778577134000,-2426.74170312,0.00041361,2]
[422113713,1778577134000,-12564.60958402,0.00041361,2]
[422113702,1778577134000,-1100.0,0.00041361,2]
[422113703,1778577134000,-3925.69498769,0.00041361,2]
[422113704,1778577134000,-934.42682344,0.00041361,2]
[422113708,1778577134000,-561.71208673,0.00041361,2]
[422113706,1778577134000,-631.04250186,0.00041361,2]
[422113710,1778577134000,-373.7328084,0.00041361,2]
[422113705,1778577134000,-493.34803,0.00041361,2]
[422113707,1778577134000,-1626.10878297,0.00041361,2]
[422113695,1778577134000,-7995.27320664,0.00041361,2]
[422113709,1778577134000,-1036.51012117,0.00041361,2]
[422113725,1778577134000,-884.6840627,0.00041361,2]
[422113715,1778577134000,-1881.78150573,0.00041361,2]
[422113726,1778577134000,-207.86355968,0.00041361,2]
[422113717,1778577134000,-7039.66186109,0.00041361,4]
[422113727,1778577134000,-289.78955895,0.00041361,2]
[422113716,1778577134000,-406.35762363,0.00041361,2]
[422113718,1778577134000,-1145.66174172,0.00041361,2]
[422113719,1778577134000,-30889.96093096,0.00041361,2]
[422113720,1778577134000,-5388.92214505,0.00041361,4]
[422113723,1778577134000,-20835.26042599,0.00041361,2]
[422113721,1778577134000,-279.96809429,0.00041361,2]
[422113724,1778577134000,-2500.79690193,0.00041361,2]
[422113722,1778577134000,-412.46406343,0.00041361,2]
[422113728,1778577134000,-5841.46146161,0.00041361,2]
[422113714,1778577134000,-15199.86384235,0.00041361,2]
[422113696,1778577134000,-699.27462414,0.00041361,2]
[422113672,1778577134000,-1056.36443234,0.00041361,2]
[422113691,1778577134000,-384.3454892,0.00041361,2]
[422113692,1778577134000,-1309.36404567,0.00041361,2]
[422113662,1778577134000,-207501.65488142,0.00041361,2]
[422113665,1778577134000,-1210.0,0.00041361,2]
[422113729,1778577134000,-2228.26412724,0.00041361,2]
[422113664,1778577134000,-125358.21433683,0.00041361,2]
[422113669,1778577134000,-2875.5364797,0.00041361,2]
[422113670,1778577134000,-991.87749482,0.00041361,2]
[422113668,1778577134000,-357.35465527,0.00041361,2]
[422113667,1778577134000,-721.2374457,0.00041361,2]
[422113677,1778577134000,-2775.02130243,0.00041361,2]
[422113678,1778577134000,-222242.59612866,0.00041361,2]
[422113676,1778577134000,-2521.86522709,0.00041361,2]
[422113674,1778577134000,-503.62094165,0.00041361,2]
[422113681,1778577134000,-255.5066381,0.00041361,2]
[422113684,1778577134000,-46290.80708145,0.00041361,2]
[422113666,1778577134000,-52296.32982368,0.00041361,2]
[422113686,1778577134000,-15334.91358881,0.00041361,2]
[422113680,1778577134000,-1720.2814031,0.00041361,2]
[422113690,1778577134000,-6000.0,0.00041361,2]
[422113697,1778577134000,-641.72669842,0.00041361,2]
[422113687,1778577134000,-234.43953602,0.00041361,2]
[422113689,1778577134000,-501.52531698,0.00041361,3]
[422113698,1778577134000,-219.99806742,0.00041361,2]
[422113699,1778577134000,-1092.73919369,0.00041361,2]
[422113682,1778577134000,-500.0,0.00041361,2]
[422113693,1778577134000,-1058.09329043,0.00041361,2]
[422113685,1778577134000,-872.03712646,0.00041361,120]
[422113679,1778577134000,-155.17387401,0.00041361,2]
[422113683,1778577134000,-1293.57299064,0.00041361,2]
[422113675,1778577134000,-1527.35028496,0.00041361,2]
[422113688,1778577134000,-177.92041079,0.00041361,2]
[422113768,1778577135000,-500.0,0.00041361,120]
[422113780,1778577135000,-500.0,0.00041361,120]
[422113776,1778577135000,-380.78719603,0.00041361,120]
[422113772,1778577135000,-629.34702667,0.00041361,120]
[422113769,1778577135000,-500.0,0.00041361,120]
[422113766,1778577135000,-500.0,0.00041361,120]
[422113771,1778577135000,-500.0,0.00041361,120]
[422113779,1778577135000,-500.0,0.00041361,120]
[422113767,1778577135000,-500.0,0.00041361,120]
[422113764,1778577135000,-500.0,0.00041361,120]
[422113763,1778577135000,-500.0,0.00041361,120]
[422113773,1778577135000,-6665.05769,0.00041361,120]
[422113778,1778577135000,-500.0,0.00041361,120]
[422113770,1778577135000,-500.0,0.00041361,120]
[422113785,1778577135000,-500.0,0.00041361,10]
[422113774,1778577135000,-262.17456361,0.00041361,120]
[422113775,1778577135000,-811.64,0.00041361,120]
[422113781,1778577135000,-500.0,0.00041361,120]
[422113782,1778577135000,-500.0,0.00041361,120]
[422113791,1778577135000,-500.0,0.00041361,120]
[422113792,1778577135000,-500.0,0.00041361,120]
[422113783,1778577135000,-500.0,0.00041361,120]
[422113793,1778577135000,-500.0,0.00041361,120]
[422113788,1778577135000,-500.0,0.00041361,10]
[422113790,1778577135000,-560.75607376,0.00041361,10]
[422113786,1778577135000,-500.0,0.00041361,10]
[422113787,1778577135000,-500.0,0.00041361,10]
[422113784,1778577135000,-475.13747395,0.00041361,120]
[422113760,1778577135000,-500.0,0.00041361,120]
[422113777,1778577135000,-387.54362579,0.00041361,120]
[422113762,1778577135000,-500.0,0.00041361,120]
[422113743,1778577135000,-1119943.04050232,0.00041361,2]
[422113754,1778577135000,-5421.93692815,0.00041361,2]
[422113789,1778577135000,-500.0,0.00041361,10]
[422113730,1778577135000,-897.80458281,0.00041361,2]
[422113737,1778577135000,-204.42430028,0.00041361,2]
[422113738,1778577135000,-761.0824633,0.00041361,2]
[422113736,1778577135000,-518.7330144,0.00041361,2]
[422113734,1778577135000,-610.0,0.00041361,2]
[422113733,1778577135000,-516.79733661,0.00041361,60]
[422113731,1778577135000,-471.98327211,0.00041361,2]
[422113735,1778577135000,-12977.41169709,0.00041361,2]
[422113732,1778577135000,-150.0,0.00041361,2]
[422113740,1778577135000,-13712.51595928,0.00041361,2]
[422113739,1778577135000,-1967.27260988,0.00041361,5]
[422113742,1778577135000,-201.48645374,0.00041361,2]
[422113752,1778577135000,-1238251.88392854,0.00041361,30]
[422113759,1778577135000,-500.0,0.00041361,120]
[422113753,1778577135000,-180.0,0.00041361,2]
[422113747,1778577135000,-20000.0,0.00041361,2]
[422113751,1778577135000,-1603.19146898,0.00041361,2]
[422113745,1778577135000,-299.39979262,0.00041361,30]
[422113746,1778577135000,-379.0,0.00041361,2]
[422113744,1778577135000,-1530.67837193,0.00041361,2]
[422113750,1778577135000,-199.87943536,0.00041361,2]
[422113748,1778577135000,-468.25167103,0.00041361,2]
[422113749,1778577135000,-160.70875436,0.00041361,2]
[422113755,1778577135000,-5019.08259813,0.00041361,2]
[422113756,1778577135000,-500.0,0.00041361,2]
[422113758,1778577135000,-500.0,0.00041361,120]
[422113757,1778577135000,-1990.0,0.00041361,2]
[422113765,1778577135000,-500.0,0.00041361,120]
[422113761,1778577135000,-500.0,0.00041361,120]
[422113741,1778577135000,-1004427.31604402,0.00041361,60]
[422113795,1778577135000,-500.0,0.00041361,120]
[422113803,1778577135000,-500.0,0.00041361,120]
[422113857,1778577135000,-3709.22,0.00041361,120]
[422113829,1778577135000,-599.41459667,0.00041361,2]
[422113827,1778577135000,-418.76153392,0.00041361,120]
[422113828,1778577135000,-20230.0,0.00041361,60]
[422113834,1778577135000,-19430.75,0.00041361,120]
[422113835,1778577135000,-19430.75,0.00041361,120]
[422113836,1778577135000,-19430.75,0.00041361,120]
[422113837,1778577135000,-19430.75,0.00041361,120]
[422113845,1778577135000,-19430.75,0.00041361,120]
[422113839,1778577135000,-19430.75,0.00041361,120]
[422113846,1778577135000,-19430.75,0.00041361,120]
[422113840,1778577135000,-19430.75,0.00041361,120]
[422113838,1778577135000,-19430.75,0.00041361,120]
[422113844,1778577135000,-19430.75,0.00041361,120]
[422113841,1778577135000,-19430.75,0.00041361,120]
[422113826,1778577135000,-208.8,0.00041361,120]
[422113842,1778577135000,-19430.75,0.00041361,120]
[422113849,1778577135000,-19430.75,0.00041361,120]
[422113860,1778577135000,-3709.22,0.00041361,120]
[422113859,1778577135000,-3709.22,0.00041361,120]
[422113848,1778577135000,-19430.75,0.00041361,120]
[422113850,1778577135000,-19430.75,0.00041361,120]
[422113855,1778577135000,-3709.22,0.00041361,120]
[422113851,1778577135000,-19430.75,0.00041361,120]
[422113856,1778577135000,-3709.22,0.00041361,120]
[422113853,1778577135000,-19430.9802,0.00041361,120]
[422113854,1778577135000,-3709.22,0.00041361,120]
[422113852,1778577135000,-19430.75,0.00041361,120]
[422113858,1778577135000,-3709.22,0.00041361,120]
[422113804,1778577135000,-500.0,0.00041361,120]
[422113861,1778577135000,-3709.22,0.00041361,120]
[422113843,1778577135000,-19430.75,0.00041361,120]
[422113825,1778577135000,-649.5192395,0.00041361,120]
[422113847,1778577135000,-19430.75,0.00041361,120]
[422113823,1778577135000,-3390.65305,0.00041361,120]
[422113806,1778577135000,-500.0,0.00041361,120]
[422113830,1778577135000,-19430.75,0.00041361,120]
[422113797,1778577135000,-500.0,0.00041361,120]
[422113796,1778577135000,-500.0,0.00041361,120]
[422113794,1778577135000,-500.0,0.00041361,120]
[422113799,1778577135000,-500.0,0.00041361,120]
[422113802,1778577135000,-500.0,0.00041361,120]
[422113798,1778577135000,-500.0,0.00041361,120]
[422113801,1778577135000,-500.0,0.00041361,120]
[422113800,1778577135000,-500.0,0.00041361,120]
[422113807,1778577135000,-307.23164035,0.00041361,120]
[422113819,1778577135000,-263.3051256,0.00041361,117]
[422113810,1778577135000,-49614.8,0.00041361,30]
[422113818,1778577135000,-280.24259375,0.00041361,120]
[422113812,1778577135000,-500.0,0.00041361,120]
[422113805,1778577135000,-500.0,0.00041361,120]
[422113811,1778577135000,-500.0,0.00041361,120]
[422113822,1778577135000,-318.03755343,0.00041361,120]
[422113820,1778577135000,-364.50305797,0.00041361,120]
[422113824,1778577135000,-318.8579,0.00041361,120]
[422113833,1778577135000,-19430.75,0.00041361,120]
[422113832,1778577135000,-19430.75,0.00041361,120]
[422113808,1778577135000,-2894.967,0.00041361,58]
[422113821,1778577135000,-21163.90604741,0.00041361,3]
[422113831,1778577135000,-19430.75,0.00041361,120]
[422113815,1778577135000,-500.0,0.00041361,120]
[422113814,1778577135000,-500.0,0.00041361,120]
[422113813,1778577135000,-500.0,0.00041361,120]
[422113816,1778577135000,-500.0,0.00041361,120]
[422113809,1778577135000,-74422.2,0.00041361,120]
[422113817,1778577135000,-500.0,0.00041361,120]
[422113905,1778577136000,-500.0,0.00041361,120]
[422113901,1778577136000,-2952440.89641026,0.00041361,30]
[422113913,1778577136000,-3911.90896371,0.00041361,2]
[422113903,1778577136000,-500.0,0.00041361,120]
[422113904,1778577136000,-500.0,0.00041361,120]
[422113894,1778577136000,-500.0,0.00041361,120]
[422113902,1778577136000,-500.0,0.00041361,120]
[422113896,1778577136000,-500.0,0.00041361,120]
[422113892,1778577136000,-500.0,0.00041361,120]
[422113895,1778577136000,-500.0,0.00041361,120]
[422113897,1778577136000,-566.11120762,0.00041361,120]
[422113898,1778577136000,-168203.91,0.00041361,30]
[422113912,1778577136000,-202331.99361311,0.00041361,30]
[422113910,1778577136000,-500.0,0.00041361,120]
[422113917,1778577136000,-524.55997279,0.00041361,120]
[422113906,1778577136000,-500.0,0.00041361,120]
[422113909,1778577136000,-500.0,0.00041361,120]
[422113907,1778577136000,-500.0,0.00041361,120]
[422113908,1778577136000,-500.0,0.00041361,120]
[422113925,1778577136000,-500.0,0.00041361,120]
[422113915,1778577136000,-193.44121683,0.00041361,120]
[422113916,1778577136000,-500.0,0.00041361,120]
[422113918,1778577136000,-4000.0,0.00041361,30]
[422113926,1778577136000,-500.0,0.00041361,120]
[422113914,1778577136000,-10241.1363435,0.00041361,30]
[422113923,1778577136000,-500.0,0.00041361,120]
[422113921,1778577136000,-500.0,0.00041361,120]
[422113893,1778577136000,-503.3389046,0.00041361,120]
[422113911,1778577136000,-534.80160488,0.00041361,120]
[422113899,1778577136000,-150.0,0.00041361,120]
[422113919,1778577136000,-500.0,0.00041361,120]
[422113889,1778577136000,-250.42215881,0.00041361,120]
[422113863,1778577136000,-3709.22,0.00041361,120]
[422113869,1778577136000,-3709.22,0.00041361,120]
[422113867,1778577136000,-3709.22,0.00041361,120]
[422113864,1778577136000,-3709.22,0.00041361,120]
[422113868,1778577136000,-3709.22,0.00041361,120]
[422113862,1778577136000,-3709.22,0.00041361,120]
[422113865,1778577136000,-3709.22,0.00041361,120]
[422113866,1778577136000,-3709.22,0.00041361,120]
[422113870,1778577136000,-3709.22,0.00041361,120]
[422113871,1778577136000,-3709.22,0.00041361,120]
[422113873,1778577136000,-3709.22,0.00041361,120]